Cogmind - Beta 13 @@@ ROGUE MODE // 2024.07.25 @ 17:22:35 Player: N.W.L Result: Destroyed by as-69894 with Assembled Maul Performance ------------- Evolutions (0) 0 Regions Visited (0) 0 Robots Destroyed (4) 20 Value Destroyed (73) 73 Prototype IDs (0) 0 Alien Tech Used (0) 0 Bonus (0) 0 TOTAL SCORE: 93 Bonus ------- None Cogmind --------- Core Integrity 0/250 Matter 225/300 Energy 40/100 System Corruption 0% Temperature Cool (25) Movement Core (50) Location -11/Scrapyard Parts ------- > --- POWER (1) -------- (None) > --- PROPULSION (2) --- (None) > --- UTILITY (2) ------ (None) > --- WEAPON (2) ------- Mining Laser > --- INVENTORY (5) ---- Ion Engine Light Ion Engine Aluminum Leg Small Storage Unit Peak State ------------ > --- POWER ------------ Light Deuterium Engine > --- PROPULSION ------- Light Treads Light Treads > --- UTILITY ---------- Small Storage Unit > --- WEAPON ----------- Assault Rifle Light Assault Rifle > --- INVENTORY -------- Ion Engine Light Ion Engine Aluminum Leg Aluminum Leg Small Storage Unit Improved Terrain Scanner Seismic Detector Mining Laser [Rating: 9] Favorites ----------- Power Light Deuterium Engine Engine Light Deuterium Engine Propulsion Light Treads Treads Light Treads Utility Small Storage Unit Device Seismic Detector Storage Small Storage Unit Weapon Light Assault Rifle Ballistic Gun Light Assault Rifle Special Weapon Mining Laser Build | -11 ------- Run | Yrd Slots Evolved . | . Power . | . Propulsion . | . Utility . | . Weapon . | . Parts Attached 11 | 11 Power 1 | 1 Engine 1 | 1 Core . | . Reactor . | . Propulsion 2 | 2 Treads 2 | 2 Leg . | . Wheel . | . Hover . | . Flight . | . Utility 4 | 4 Device 1 | 1 Storage 3 | 3 Processor . | . Hackware . | . Protection . | . Artifact . | . Weapon 4 | 4 Energy Gun . | . Energy Cannon . | . Ballistic Gun 2 | 2 Ballistic Cannon . | . Launcher . | . Special Weapon 2 | 2 Impact Weapon . | . Slashing Weapon . | . Piercing Weapon . | . Special Melee Weapon . | . Unidentified Prototypes . | . Parts Lost 4 | 4 Power . | . Propulsion 2 | 2 Utility . | . Weapon 2 | 2 Highest Loss Streak 4 | 4 To Critical Strikes . | . Average Slot Usage (%) . | . Naked Turns . | . Heaviest Build 13 | 13 Greatest Support 40 | 40 Greatest Overweight (x) 4 | 4 Average Overweight (x) 3 | 3 Largest Inventory Capacity 8 | 8 Average Capacity 7 | 7 Most Carried 8 | 8 Average Carried 6 | 6 Final Capacity 5 | 5 Final Carried 4 | 4 Class Distribution -------------------- None Dominant Class ---------------- None Resources | -11 ----------- Run | Yrd Matter Collected 305 | 305 Remotely . | . Salvage Created 114 | 114 Parts 9 | 9 Haulers Intercepted . | . Recyclers Shooed . | . Parts Field Recycled . | . Retrieved Matter . | . Parts Self-Destructed . | . Prevented . | . Kills | -11 ------- Run | Yrd Combat Hostiles Destroyed 2 | 2 Guns 2 | 2 Classes Destroyed 4 | 4 Tunneler 2 | 2 Recycler 1 | 1 Demolisher 1 | 1 Assembled 1 | 1 Best Kill Streak 2 | 2 Combat Bots Only 1 | 1 Max Kills in Single Turn 1 | 1 Gunslinging . | . Exploded . | . Melee . | . Uniques/NPCs Destroyed . | . Combat | -11 -------- Run | Yrd Hostile Shots Fired 53 | 53 Missed 16 | 16 Damage Taken 792 | 792 Core 252 | 252 Absorbed by Shields . | . Core Remaining (%) . | . Volleys Fired 27 | 27 Largest 2 | 2 Hottest 100 | 100 Shots Fired 50 | 50 Gun 48 | 48 Cannon . | . Launcher . | . Special 2 | 2 Kinetic 48 | 48 Thermal 2 | 2 Explosive . | . Electromagnetic . | . Robot Hit Streak 11 | 11 Robot Miss Streak 2 | 2 Penetration Max . | . Secondary Targets 1 | 1 Max Gunslinging Chain 1 | 1 Shots Hit Robots 24 | 24 Core Hits 8 | 8 Critical Kills . | . Critical Parts Destroyed . | . Critical Strikes . | . Melee Attacks . | . Impact . | . Slashing . | . Piercing . | . Sneak Attacks . | . Combat Hostiles . | . Follow-up Attacks . | . Damage Inflicted 261 | 261 Guns 260 | 260 Cannons . | . Explosions . | . Melee . | . Ramming 1 | 1 Kinetic 260 | 260 Thermal . | . Explosive . | . Electromagnetic . | . Impact . | . Slashing . | . Piercing . | . Highest Corruption . | . Average Corruption . | . Corruption Purged . | . Corruption Blocked . | . Overload Shots . | . Overflow Damage . | . Projectiles . | . Explosions . | . Melee . | . Knockbacks . | . Impact . | . Kinetic . | . Secondary . | . Self-Inflicted Damage . | . Shots . | . Rammed 1 | 1 Targets Rammed 1 | 1 Kicked . | . Crushed . | . Highest Temperature 25 | 25 Average Temperature 6 | 6 Received Heat Transfer . | . Siege Activations . | . Robots Corrupted . | . Combat Hostiles . | . Parts Fried . | . Impact Corruptions . | . Robots Melted . | . Combat Hostiles . | . Parts Melted . | . Heat Transferred . | . Parts Sabotaged . | . Parts Stolen . | . Parts Stripped . | . Power Chain Reactions . | . Alert | -11 ------- Run | Yrd Peak Influence 20 | 20 Initial . | . Average 4 | 4 Maximum Alert Level . | . Low Security (%) 100 | 100 Level 1 . | . Level 2 . | . Level 3 . | . Level 4 . | . Level 5 . | . High Security . | . Max Security . | . Squads Dispatched . | . Investigation . | . Extermination . | . Reinforcement . | . Assault . | . Garrison . | . Intercept . | . Searches Triggered . | . Construction Impeded . | . Haulers Reinforced . | . Active Scanning Responses . | . Cargo Convoy Interrupts . | . Stealth | -11 --------- Run | Yrd Distress Signals . | . Communications Jammed . | . Distress Signals . | . Times Spotted 12 | 12 Peak Tracking Total 8 | 8 Tactical Retreats 1 | 1 Traps | -11 ------- Run | Yrd Traps Triggered . | . Indirectly . | . Trap Hack Attempts . | . Triggered . | . Disarmed . | . Reprogrammed . | . Reused . | . Traps Extracted . | . Installed . | . Triggered . | . Machines | -11 ---------- Run | Yrd Machines Disabled . | . Max in Single Turn . | . Machines Repaired . | . Machines Dismantled . | . Machines Sabotaged . | . Overloaded Fab Kills . | . Hacking | -11 --------- Run | Yrd Machines Accessed . | . Terminals . | . Fabricators . | . Repair Stations . | . Recycling Units . | . Scanalyzers . | . Garrison Access . | . Total Hacks . | . Successful . | . Failed . | . Catastrophic . | . Database Lockouts . | . Manual . | . Terminals . | . Fabricators . | . Repair Stations . | . Recycling Units . | . Scanalyzers . | . Garrison Access . | . Terminal Hacks . | . Fabricator Hacks . | . Repair Station Hacks . | . Recycling Unit Hacks . | . Scanalyzer . | . Garrison Access Hacks . | . Unauthorized Hacks . | . Terminals . | . Fabricators . | . Repair Stations . | . Recycling Units . | . Scanalyzers . | . Garrison Access . | . Data Cores Recovered . | . Used . | . Hacking Detections . | . Full Trace Events . | . Feedback Events . | . Feedback Blocked . | . Robot Schematics Acquired . | . Robots Built . | . Authchips . | . Time . | . Total Robot Build Rating . | . Part Schematics Acquired . | . Parts Built . | . Authchips . | . Time . | . Total Part Build Rating . | . Parts Repaired . | . Time . | . Parts Recycled . | . Recycled Matter . | . Retrieved Matter . | . Retrieved Components . | . Parts Scanalyzed . | . Part Schematics Acquired . | . Parts Damaged . | . Bothacking | -11 ------------ Run | Yrd Used RIF Installer . | . Robots Hacked . | . Non-combat . | . Combat . | . Robot Hacks Applied . | . Relay Couplers Released . | . Fabnet Peak Effective % . | . Robots Rewired . | . Allies Hacked . | . Hacks Repelled . | . Allies | -11 -------- Run | Yrd Total Allies . | . Largest Group . | . Highest-Rated Group . | . Highest-Rated Ally . | . Total Orders . | . Ally Attacks . | . Total Damage . | . Kills . | . Allies Corrupted . | . Allies Melted . | . Intel | -11 ------- Run | Yrd Robot Analysis Total . | . Derelict Logs Recovered . | . Drone Launches . | . Drone Recoveries . | . Exploration | -11 ------------- Run | Yrd Turns Passed 1160 | 1160 Spaces Moved 460 | 460 Core 390 | 390 Treads 70 | 70 Legs . | . Wheels . | . Hover . | . Flight . | . Fastest Speed 50 | 50 Average Speed 224 | 224 Slowest Speed 250 | 250 Overloaded Moves . | . Propulsion Burnouts . | . Robots Hopped . | . Cave-ins Triggered . | . Exploration Rate (%) 36 | 36 Regions Visited . Branch Regions . Pre-discovered Areas . | . Known Exits Taken . | . Unknown Exits Taken . | . Scrap Searched . | . Spaces Dug 1 | 1 Terrain Destroyed 1 | 1 Melee . | . Projectile 1 | 1 AOE . | . Terrain Rammed . | . Walls Destroyed . | . Machines Disabled . | . Actions | -11 --------- Run | Yrd Total 538 | 538 Wait 25 | 25 Move 460 | 460 Hop . | . Pick Up 8 | 8 Fast Attach 7 | 7 Attach 4 | 4 Detach 3 | 3 Swap . | . Drop 3 | 3 Fire 27 | 27 Melee . | . Ram 1 | 1 Kick . | . Crush . | . Escape Stasis . | . Rewire . | . Trap . | . Miscellaneous . | . Route ------- -11/Scrapyard (discovered 1 exit: [*Mat]) History --------- Turn | Location | Event 12 | -11/Scrapyard | Discovered new exit (range 15) 1068 | -11/Scrapyard | Assembled infested the area 1138 | -11/Scrapyard | Core integrity fell below 50% 1141 | -11/Scrapyard | Core integrity fell below 20% 1161 | -11/Scrapyard | Destroyed by as-69894 with Assembled Maul Last Messages --------------- 01099_ D-53 Grenadier destroyed. 01100_ as-33373 destroyed. 01101_ Acquired 7 matter. 01105_ The unstable cave ceiling collapses. 01105_ Acquired Lgt. Deuterium Engine. 01108_ The unstable cave ceiling collapses. 01117_ K-01 Serf collects debris. 01121_ as-13375 destroyed. 01121_ Switching to secondary target: as-31050. 01129_ Destroyed Asb. Hover Unit. 01132_ Lgt. Treads destroyed. 01132_ Assault Rifle destroyed. 01137_ Lgt. Treads destroyed. 01138_ Lgt. Assault Rifle destroyed. 01140_ Dropped Lgt. Deuterium Engine. 01141_ Dropped Sml. Storage Unit. 01142_ K-01 Serf collects debris. 01143_ K-01 Serf destroyed. 01153_ T-07 Excavator is excavating. 01158_ T-07 Excavator destroyed. Map ----- +----------------------------------------------------+ | ?????????????????????????????????????? | | ?????????????????????????????????????? | | ?????????????????????????????????????? | | ?????????????????????????????????????? | | ?????????????????????????????????????? | | ?????????????????????????????????????? | | ?????????????????????????????????????? | | ?????????????????????????????????????? | | ?????????????????????????????????????? | | ?????????????????????????????????????? | | ?????????????????????????????????????? | | ?????????????????????????????????????? | | ?????????????????????????????????????? | | ?????????????????????????????????????? | | ?????????????????????????????????????? | | ?????????????????????????????????????? | | ?????????????????????????????????????? | | ?????????????????????????????????????? | | ?????????????????????????????????????? | | ?????????????????????????????????????? | | ?????????????????????????????????????? | | ?????????????????????????????????????? | | ###????#######???????????????????????? | | #?#### ############????????????? | | #?# # ## #########???? | | #?# # # @ #???? | | #?# # # a #???? | | #?# # #???? | | #?# # #a #???? | | #?# # a # #???? | | #?# # # * #???? | | ##### # %=#???? | | ### ## #### # !##???? | | !! %=! ##########????? | | %=*! ##### #?????????????? | | # # # #?????????????? | | %! # ????????????? | | = # # ????????????? | | # # ???????????? | | # # #?????????????? | | # # ##### #?????????????? | | # ????? ??????????????? | | # # #???? ??????????????? | | # # #???? ??????????????? | | ######? #????????????????????? | | # #######?????? ????????????????????? | | ?????#???????????????????? | | ?????????????????????????? | | ## #######???????????????????????????? | | ? ????????????????????????????????? | +----------------------------------------------------+ Best States ------------- Heat Dissipation 25 Energy Generation 14 Energy Capacity 140 Matter Stores 276 Matter Capacity 300 Sight Range 16 Terrain Scan Density 10 Evasion (%) 50 Recoil Reduction 2 Item Schematics ----------------- None Robot Schematics ------------------ None Fabricated ------------ Nothing Alien Tech Used ----------------- None Achievements -------------- None Challenges ------------ None Game ------ Seed FlakImpactGuard Manual? 0 Play Time 00:06:16 Cumulative 215.7 hours Start 2024.07.25 @ 17:19:24 End 2024.07.25 @ 17:22:35 Sessions 0 Manual Loads 0 Difficulty Rogue Special Mode None Game No. 104 Rogue 104 Adventurer 0 Explorer 0 Win Type - Total 8 Types 4/1/3/0/0/0/0/0/0 Lore% 79 Gallery% 86 Achievement% 67 Wizard Run 0 Options --------- Layout 0 ASCII 0 Keyboard 0 Movement Mouse Keybinds 0 Fullscreen 2 Font 18/SmallcapsGlow Map View 76x50 Zoom Use 0% Tactical HUD 1 Map Filters NONE Filters NONE Steam 1 RUN: 7f230ea9-d63c-44bd-96ec-5dba4925ea1d